fUSD/lending_fUSD_20250903
["ID","MTS","AMOUNT","RATE_DAILY","PERIOD"]
[383126044,1756857657247,-62.87,0.0001991,2]
[383126045,1756857657259,-94.88,0.0001991,2]
[383126046,1756857657269,-62.87,0.0001991,2]
[383126047,1756857658928,151.70342095,0.00030136,120]
[383126051,1756858196567,159.35,0.00010973,2]
[383126052,1756858196636,159.35,0.00014631,2]
[383126053,1756858196975,159.35,0.00018289,2]
[383126056,1756858232410,-1200.0,0.00019909,2]
[383126057,1756858232420,-241.43081055,0.00019909,2]
[383126058,1756858232432,-58.56918945,0.00019909,2]
[383126059,1756858232441,-300.0,0.00019909,2]
[383126060,1756858232451,-201.93286099,0.0001991,2]
[383126061,1756858232460,-250.0,0.0001991,2]
[383126062,1756858232470,-437.13,0.0001991,2]
[383126063,1756858232479,-166.83,0.0001991,2]
[383126064,1756858232488,-48.25520694,0.0001991,2]
[383126065,1756858232499,-132.72979306,0.0001991,2]
[383126066,1756858232508,-2000.0,0.0001991,2]
[383126067,1756858232517,-2000.0,0.0001991,2]
[383126068,1756858232527,-2000.0,0.0001991,2]
[383126069,1756858232536,-2000.0,0.0001991,2]
[383126070,1756858232546,-2000.0,0.0001991,2]
[383126071,1756858232555,-2000.0,0.0001991,2]
[383126072,1756858232564,-2000.0,0.0001991,2]
[383126073,1756858232575,-2000.0,0.0001991,2]
[383126074,1756858232584,-231.0,0.0002,2]
[383126075,1756858232594,-250.0,0.00020755,2]
[383126076,1756858232603,-479.86206715,0.00021054,2]
[383126077,1756858232613,-226.0,0.0002118,2]
[383126078,1756858232623,-180.0,0.00021681,2]
[383126079,1756858232632,-420.0,0.00021681,2]
[383126080,1756858232642,-1680.0,0.00021785,2]
[383126081,1756858232652,-250.0,0.000219,2]
[383126082,1756858232662,-159.35,0.00021947,2]
[383126084,1756858232672,-5097.7,0.00022202,2]
[383126086,1756858232682,-444.0,0.0002237,2]
[383126087,1756858232691,-300.0,0.00022449,2]
[383126088,1756858232700,-164.99013237,0.00022449,2]
[383126089,1756858232710,-11067.17167423,0.0002245,2]
[383126090,1756858232720,-300.0,0.0002256,2]
[383126091,1756858232729,-38024.95,0.00022561,2]
[383126092,1756858232739,-6241.26,0.00022639,2]
[383126093,1756858232749,-150.0,0.0002266,2]
[383126094,1756858232759,-150.0,0.0002266,2]
[383126095,1756858232768,-150.0,0.0002266,2]
[383126096,1756858232777,-150.0,0.0002266,2]
[383126097,1756858232787,-150.0,0.0002266,2]
[383126098,1756858232797,-2702.39,0.00022685,2]
[383126100,1756858232807,-150.0,0.00022702,2]
[383126102,1756858232816,-1500.0,0.00022717,2]
[383126104,1756858232826,-508.7100545,0.0002286,2]
[383126107,1756858232836,-171137.13135431,0.00023007,8]
[383126109,1756858232849,-312.19768738,0.00023007,8]
[383126116,1756858232894,-5039.82415718,0.00023007,8]
[383126118,1756858232906,-483.0564,0.00023007,8]
[383126121,1756858232922,-8036.54045956,0.00023007,8]
[383126124,1756858232934,-64143.78736588,0.00023007,8]
[383126127,1756858232946,-15510.52288896,0.00023007,8]
[383126133,1756858232991,-5571.20727903,0.00023007,8]
[383126135,1756858233002,-473.24430998,0.00023007,8]
[383126137,1756858233014,-533.30551326,0.00023007,8]
[383126142,1756858233045,-446.0,0.00023007,8]
[383126318,1756858238409,-459.44,0.00022997,3]
[383126319,1756858238419,-654.76,0.00023007,8]
[383126320,1756858238484,-12700.57811002,0.00023007,8]
[383126325,1756858240984,-503749.83723179,0.00023007,8]
[383126326,1756858240994,-35826.48116073,0.00023007,8]
[383126330,1756858241321,-355.13,0.00023007,2]
[383126331,1756858241331,-500.0,0.00023112,2]
[383126332,1756858241341,-600.0,0.00023112,2]
[383126333,1756858241351,-151.0,0.00023112,2]
[383126334,1756858241360,-151.0,0.00023112,2]
[383126335,1756858241370,-200.0,0.00023112,2]
[383126336,1756858241380,-151.0,0.00023112,2]
[383126337,1756858241390,-151.0,0.00023112,2]
[383126338,1756858241400,-151.0,0.00023112,2]
[383126339,1756858241410,-151.0,0.00023112,2]
[383126340,1756858241420,-151.0,0.00023112,2]
[383126341,1756858241430,-151.0,0.00023112,2]
[383126342,1756858241440,-151.0,0.00023112,2]
[383126343,1756858241450,-204.51473502,0.00023112,2]
[383126344,1756858241460,-200.0,0.00023112,2]
[383126345,1756858241470,-1840.07772087,0.00023122,2]
[383126346,1756858241479,-1354.62,0.00023126,2]
[383126347,1756858241490,-200.0,0.00023161,2]
[383126348,1756858241500,-500.0,0.00023167,2]
[383126349,1756858241509,-544.56,0.00023174,2]
[383126350,1756858241519,-384.83,0.00023183,2]
[383126351,1756858241529,-205.32,0.00023208,2]
[383126352,1756858241540,-200.0,0.00023209,2]
[383126353,1756858241550,-500.0,0.00023222,2]
[383126354,1756858241560,-182.08869225,0.00023242,2]
[383126355,1756858241570,-500.0,0.00023277,2]
[383126356,1756858241579,-159.49,0.00023277,2]
[383126357,1756858241589,-791.72478527,0.00023315,2]
[383126358,1756858241600,-610.0,0.00023322,2]
[383126359,1756858241611,-500.0,0.00023332,2]
[383126360,1756858241620,-500.0,0.00023387,2]
[383126361,1756858241631,-407.17,0.00023395,2]
[383126362,1756858241640,-153.13,0.00023423,3]
[383126363,1756858241650,-400.71943379,0.00023434,2]
[383126364,1756858241660,-500.0,0.00023442,2]
[383126365,1756858241672,-500.0,0.00023473,2]
[383126366,1756858241681,-250.0,0.00023483,2]
[383126367,1756858241691,-500.0,0.00023497,2]
[383126368,1756858241700,-435.0,0.0002355,2]
[383126369,1756858241710,-500.0,0.00023552,2]
[383126370,1756858241719,-27373.64437961,0.000236,2]
[383126371,1756858241729,-500.0,0.00023607,2]
[383126372,1756858241739,-3348.68,0.00023609,2]
[383126373,1756858241748,-587.0,0.0002361,2]
[383126374,1756858241757,-150.0,0.00023658,2]
[383126375,1756858241767,-614.3635326,0.0002366,2]
[383126376,1756858241777,-200.0,0.0002366,2]
[383126377,1756858241787,-500.0,0.00023662,2]
[383126378,1756858241797,-500.0,0.00023673,2]
[383126379,1756858241809,-500.0,0.00023673,2]
[383126380,1756858241818,-500.0,0.00023673,2]
[383126381,1756858241828,-500.0,0.00023673,2]
[383126382,1756858241838,-643.32863174,0.00023673,2]
[383126383,1756858241847,-151.0,0.00023677,7]
[383126384,1756858241857,-151.0,0.00023677,7]
[383126385,1756858241867,-166.7,0.00023706,2]
[383126386,1756858241877,-334.89,0.00023715,2]
[383126387,1756858241890,-5000.0,0.00023743,2]
[383126388,1756858241899,-163.48203755,0.00023744,2]
[383126389,1756858241909,-300.0,0.00023744,2]
[383126390,1756858241918,-2332.0,0.00023838,2]
[383126391,1756858241930,-219.48937929,0.00023843,10]
[383126392,1756858241939,-1644.58795438,0.00023843,10]
[383126393,1756858241949,-322.6107,0.00023844,2]
[383126394,1756858241961,-9552.16786547,0.00023844,2]
[383126395,1756858241971,-151.0,0.00023844,2]
[383126396,1756858241980,-160.0,0.00023844,2]
[383126397,1756858241990,-183.71936492,0.00023844,2]
[383126398,1756858241999,-250.0,0.00023844,2]
[383126399,1756858242009,-721.12765535,0.00023844,2]
[383126400,1756858242019,-250.0,0.00023844,2]
[383126401,1756858242028,-250.0,0.00023844,2]
[383126402,1756858242038,-250.0,0.00023844,2]
[383126403,1756858242047,-250.0,0.00023844,2]
[383126404,1756858242056,-3355.69755467,0.00023844,2]
[383126405,1756858242065,-250.0,0.00023844,2]
[383126406,1756858242074,-250.0,0.00023844,2]
[383126407,1756858242084,-250.0,0.00023844,2]
[383126408,1756858242094,-250.0,0.00023844,2]
[383126409,1756858242103,-500.0,0.00023844,2]
[383126410,1756858242112,-209.40437684,0.00023844,2]
[383126411,1756858242122,-250.0,0.00023844,2]
[383126412,1756858242131,-500.0,0.00023844,2]
[383126413,1756858242140,-250.0,0.00023844,2]
[383126414,1756858242149,-500.0,0.00023844,2]
[383126415,1756858242159,-500.0,0.00023844,2]
[383126416,1756858242169,-500.0,0.00023844,2]
[383126417,1756858242178,-3000.0,0.00023844,2]
[383126418,1756858242188,-500.0,0.00023844,2]
[383126419,1756858242197,-500.0,0.00023844,2]
[383126420,1756858242207,-500.0,0.00023844,2]
[383126421,1756858242216,-250.0,0.00023844,2]
[383126422,1756858242225,-250.0,0.00023844,2]
[383126423,1756858242235,-250.0,0.00023844,2]
[383126424,1756858242244,-500.0,0.00023844,2]
[383126425,1756858242254,-250.0,0.00023844,2]
[383126426,1756858242263,-250.0,0.00023844,2]
[383126427,1756858242273,-500.0,0.00023844,2]
[383126428,1756858242282,-250.0,0.00023844,2]
[383126429,1756858242292,-250.0,0.00023844,2]
[383126430,1756858242301,-500.0,0.00023844,2]
[383126431,1756858242311,-250.0,0.00023844,2]
[383126432,1756858242320,-250.0,0.00023844,2]
[383126433,1756858242330,-151.0,0.00023844,2]
[383126434,1756858242341,-250.0,0.00023844,2]
[383126435,1756858242351,-186.12871857,0.00023844,2]
[383126436,1756858242361,-250.0,0.00023844,2]
[383126437,1756858242371,-151.0,0.00023844,2]
[383126438,1756858242382,-250.0,0.00023844,2]
[383126439,1756858242393,-277.35679052,0.00023844,2]
[383126440,1756858242404,-151.0,0.00023844,2]
[383126441,1756858242416,-250.0,0.00023844,2]
[383126442,1756858242426,-151.0,0.00023844,2]
[383126443,1756858242435,-250.0,0.00023844,2]
[383126444,1756858242445,-151.0,0.00023844,2]
[383126445,1756858242456,-356.82881198,0.00023844,2]
[383126446,1756858242466,-151.0,0.00023844,2]
[383126447,1756858242479,-151.0,0.00023844,2]
[383126448,1756858242489,-151.0,0.00023844,2]
[383126449,1756858242498,-151.0,0.00023844,2]
[383126450,1756858242508,-151.0,0.00023844,2]
[383126451,1756858242521,-151.0,0.00023844,2]
[383126452,1756858242530,-151.0,0.00023844,2]
[383126453,1756858242540,-151.0,0.00023844,2]
[383126454,1756858242550,-151.0,0.00023844,2]
[383126455,1756858242560,-151.0,0.00023844,2]
[383126456,1756858242570,-151.0,0.00023844,2]
[383126457,1756858242579,-151.0,0.00023844,2]
[383126458,1756858242589,-1000.0,0.00023844,2]
[383126459,1756858242598,-1000.0,0.00023844,2]
[383126460,1756858242607,-151.0,0.00023844,2]
[383126461,1756858242617,-1000.0,0.00023844,2]
[383126462,1756858242626,-1000.0,0.00023844,2]
[383126463,1756858242635,-1123.97869626,0.00023844,2]
[383126464,1756858242645,-151.0,0.00023844,2]
[383126465,1756858242655,-500.0,0.00023844,2]
[383126466,1756858242665,-500.0,0.00023844,2]
[383126467,1756858242675,-500.0,0.00023844,2]
[383126468,1756858242684,-500.0,0.00023844,2]
[383126469,1756858242694,-500.0,0.00023844,2]
[383126470,1756858242703,-250.0,0.00023844,2]
[383126471,1756858242713,-9905.5980765,0.00023899,2]
[383126472,1756858242722,-156.587,0.00023899,2]
[383126473,1756858242732,-300.0,0.000239,8]
[383126474,1756858242742,-5474.95777393,0.00023954,2]
[383126475,1756858242752,-162.380719,0.00023954,2]
[383126476,1756858242761,-168.3888056,0.00024009,2]
[383126477,1756858242770,-1000.0,0.00024021,2]
[383126478,1756858242780,-174.61919141,0.00024064,2]
[383126479,1756858242789,-156.97061709,0.00024104,2]
[383126480,1756858242798,-151.37,0.00024104,2]
[383126481,1756858242807,-807.16,0.0002411,2]
[383126482,1756858242816,-1000.0,0.00024114,2]
[383126483,1756858242826,-2500.0,0.00024114,2]
[383126484,1756858242835,-276.4016,0.00024114,2]
[383126485,1756858242845,-1000.0,0.00024114,2]
[383126486,1756858242855,-190954.5144,0.00024114,2]
[383126487,1756858242864,-181.08010149,0.00024119,2]
[383126488,1756858242874,-200.0,0.00024208,2]
[383126489,1756858242886,-1000.0,0.00024221,2]
[383126490,1756858242898,-467.179508,0.00024221,2]
[383126491,1756858242908,-1000.0,0.00024221,2]
[383126492,1756858242918,-168.0,0.00024255,2]
[383126493,1756858242927,-168.0,0.00024308,2]
[383126494,1756858242936,-1264.0,0.00024338,2]
[383126495,1756858242946,-205.32,0.00024368,2]
[383126496,1756858242955,-180.44,0.00024386,2]
[383126497,1756858242967,-301.33348331,0.00024392,2]
[383126498,1756858242978,-562.0,0.00024466,2]
[383126499,1756858242987,-562.0,0.000245,2]
[383126500,1756858242996,-1041.16874634,0.00024506,2]
[383126501,1756858243005,-1500.0,0.00024568,2]
[383126502,1756858243015,-263.0,0.000246,10]
[383126503,1756858243025,-700.0,0.000246,8]
[383126504,1756858243034,-126558.9888335,0.00024605,2]
[383126505,1756858243044,-1300.0,0.00024606,2]
[383126506,1756858243055,-567.0,0.00024606,2]
[383126507,1756858243064,-1577.0,0.00024606,2]
[383126508,1756858243076,-600.0,0.00024606,2]
[383126509,1756858243086,-811.0,0.00024606,2]
[383126510,1756858243095,-4161.0,0.00024606,2]
[383126511,1756858243105,-724.0,0.00024606,2]
[383126512,1756858243114,-6160.0,0.00024606,2]
[383126513,1756858243124,-21137.0,0.00024606,2]
[383126514,1756858243134,-163.48203751,0.00024632,2]
[383126515,1756858243143,-151.37,0.00024647,2]
[383126516,1756858243154,-150.0,0.00024656,2]
[383126517,1756858243163,-300.0,0.00024656,2]
[383126518,1756858243172,-300.0,0.00024656,2]
[383126519,1756858243183,-226254.39978376,0.00024657,2]
[383126520,1756858243193,-3296.2601946,0.00024657,2]
[383126522,1756858243202,-400.0,0.00024657,2]
[383126523,1756858243213,-400.0,0.00024657,2]
[383126524,1756858243223,-400.0,0.00024657,2]
[383126525,1756858243233,-400.0,0.00024657,2]
[383126526,1756858243243,-400.0,0.00024657,2]
[383126527,1756858243252,-400.0,0.00024657,2]
[383126528,1756858243262,-400.0,0.00024657,2]
[383126529,1756858243271,-400.0,0.00024657,2]
[383126530,1756858243281,-400.0,0.00024657,2]
[383126531,1756858243291,-3684.1577391,0.00024657,2]
[383126532,1756858243300,-400.0,0.00024657,2]
[383126533,1756858243309,-400.0,0.00024657,2]
[383126534,1756858243319,-400.0,0.00024657,2]
[383126535,1756858243328,-400.0,0.00024657,2]
[383126536,1756858243338,-400.0,0.00024657,2]
[383126537,1756858243347,-400.0,0.00024657,2]
[383126538,1756858243357,-400.0,0.00024657,2]
[383126539,1756858243366,-400.0,0.00024657,2]
[383126540,1756858243376,-400.0,0.00024657,2]
[383126541,1756858243385,-400.0,0.00024657,2]
[383126542,1756858243395,-400.0,0.00024657,2]
[383126543,1756858243405,-397.70074211,0.00024657,2]
[383126544,1756858243414,-400.0,0.00024657,2]
[383126545,1756858243424,-400.0,0.00024657,2]
[383126546,1756858243434,-400.0,0.00024657,2]
[383126547,1756858243447,-400.0,0.00024657,2]
[383126548,1756858243457,-400.0,0.00024657,2]
[383126549,1756858243467,-346.23629813,0.00024657,2]
[383126550,1756858243476,-400.17357175,0.00024657,2]
[383126551,1756858243486,-290.53905298,0.00024657,2]
[383126552,1756858243495,-400.0,0.00024657,2]
[383126553,1756858243505,-400.0,0.00024657,2]
[383126554,1756858243514,-400.0,0.00024657,2]
[383126555,1756858243523,-400.0,0.00024657,2]
[383126556,1756858243533,-341.76575368,0.00024657,2]
[383126557,1756858243543,-400.0,0.00024657,2]
[383126558,1756858243552,-400.0,0.00024657,2]
[383126559,1756858243561,-400.0,0.00024657,2]
[383126560,1756858243570,-697.86,0.00024657,2]
[383126561,1756858243579,-400.0,0.00024657,2]
[383126562,1756858243590,-400.0,0.00024657,2]
[383126563,1756858243599,-604.29,0.00024657,2]
[383126564,1756858243608,-400.0,0.00024657,2]
[383126565,1756858243618,-418.33,0.00024657,2]
[383126566,1756858243628,-400.0,0.00024657,2]
[383126567,1756858243637,-400.0,0.00024657,2]
[383126568,1756858243647,-400.0,0.00024657,2]
[383126569,1756858243656,-400.0,0.00024657,2]
[383126570,1756858243666,-400.0,0.00024657,2]
[383126571,1756858243677,-428.98,0.00024657,2]
[383126572,1756858243686,-400.0,0.00024657,2]
[383126573,1756858243696,-400.0,0.00024657,2]
[383126574,1756858243706,-400.0,0.00024657,2]
[383126576,1756858243715,-400.0,0.00024657,2]
[383126578,1756858243724,-400.0,0.00024657,2]
[383126580,1756858243734,-400.0,0.00024657,2]
[383126582,1756858243744,-400.0,0.00024657,2]
[383126583,1756858243753,-400.0,0.00024657,2]
[383126584,1756858243763,-400.0,0.00024657,2]
[383126585,1756858243772,-633.44,0.00024657,2]
[383126586,1756858243782,-400.0,0.00024657,2]
[383126587,1756858243794,-807.92,0.00024657,2]
[383126588,1756858243803,-400.0,0.00024657,2]
[383126589,1756858243812,-402.60388483,0.00024657,2]
[383126590,1756858243822,-400.0,0.00024657,2]
[383126591,1756858243832,-400.0,0.00024657,2]
[383126592,1756858243841,-400.0,0.00024657,2]
[383126593,1756858243851,-400.0,0.00024657,2]
[383126594,1756858243860,-400.0,0.00024657,2]
[383126595,1756858243870,-400.0,0.00024657,2]
[383126596,1756858243881,-681.68,0.00024657,2]
[383126597,1756858243892,-490.56,0.00024657,2]
[383126598,1756858243902,-400.0,0.00024657,2]
[383126599,1756858243912,-400.0,0.00024657,2]
[383126600,1756858243923,-402.86271139,0.00024657,2]
[383126601,1756858243932,-151.0,0.00024657,7]
[383126602,1756858243942,-400.0,0.00024657,2]
[383126603,1756858243952,-400.0,0.00024657,2]
[383126604,1756858243962,-170.336413,0.00024657,2]
[383126605,1756858243972,-164.898821,0.00024657,2]
[383126606,1756858243982,-400.0,0.00024657,2]
[383126607,1756858243992,-514.79,0.00024657,2]
[383126608,1756858244001,-400.0,0.00024657,2]
[383126609,1756858244011,-400.0,0.00024657,2]
[383126610,1756858244021,-400.95092457,0.00024657,2]
[383126611,1756858244031,-400.0,0.00024657,2]
[383126612,1756858244040,-249.55918711,0.00024657,2]
[383126613,1756858244051,-400.0,0.00024657,2]
[383126614,1756858244060,-400.0,0.00024657,2]
[383126615,1756858244070,-400.0,0.00024657,2]
[383126616,1756858244079,-795.45,0.00024657,2]
[383126617,1756858244089,-176.9435686,0.00024657,2]
[383126618,1756858244099,-400.0,0.00024657,2]
[383126619,1756858244109,-400.0,0.00024657,2]
[383126620,1756858244118,-188.02305921,0.00024657,2]
[383126621,1756858244128,-400.0,0.00024657,2]
[383126622,1756858244138,-486.54,0.00024657,2]
[383126623,1756858244148,-345.22667589,0.00024657,2]
[383126624,1756858244158,-400.0,0.00024657,2]
[383126625,1756858244167,-400.0,0.00024657,2]
[383126626,1756858244177,-169.776756,0.00024657,2]
[383126627,1756858244186,-400.0,0.00024657,2]
[383126628,1756858244195,-400.0,0.00024657,2]
[383126629,1756858244204,-400.0,0.00024657,2]
[383126630,1756858244214,-400.0,0.00024657,2]
[383126631,1756858244223,-400.0,0.00024657,2]
[383126632,1756858244232,-400.0,0.00024657,2]
[383126633,1756858244242,-400.0,0.00024657,2]
[383126634,1756858244251,-400.0,0.00024657,2]
[383126635,1756858244260,-400.0,0.00024657,2]
[383126636,1756858244271,-400.0,0.00024657,2]
[383126637,1756858244282,-400.0,0.00024657,2]
[383126638,1756858244294,-400.0,0.00024657,2]
[383126639,1756858244307,-475.27,0.00024657,2]
[383126640,1756858244318,-504.81,0.00024657,2]
[383126641,1756858244329,-400.0,0.00024657,2]
[383126642,1756858244339,-400.0,0.00024657,2]
[383126643,1756858244348,-521.99,0.00024657,2]
[383126644,1756858244357,-400.0,0.00024657,2]
[383126645,1756858244365,-400.0,0.00024657,2]
[383126646,1756858244374,-400.0,0.00024657,2]
[383126647,1756858244382,-400.0,0.00024657,2]
[383126648,1756858244392,-151.0,0.00024657,7]
[383126649,1756858244402,-400.0,0.00024657,2]
[383126650,1756858244413,-400.0,0.00024657,2]
[383126651,1756858244425,-400.0,0.00024657,2]
[383126652,1756858244435,-400.0,0.00024657,2]
[383126653,1756858244444,-151.0,0.00024657,7]
[383126654,1756858244454,-400.0,0.00024657,2]
[383126655,1756858244463,-552.63,0.00024657,2]
[383126656,1756858244473,-400.0,0.00024657,2]
[383126657,1756858244482,-655.93,0.00024657,2]
[383126658,1756858244491,-400.0,0.00024657,2]
[383126659,1756858244501,-400.0,0.00024657,2]
[383126660,1756858244511,-400.0,0.00024657,2]
[383126661,1756858244522,-400.0,0.00024657,2]
[383126662,1756858244533,-400.0,0.00024657,2]
[383126663,1756858244543,-400.0,0.00024657,2]
[383126664,1756858244553,-400.0,0.00024657,2]
[383126665,1756858244564,-400.0,0.00024657,2]
[383126666,1756858244576,-400.0,0.00024657,2]
[383126667,1756858244588,-623.31,0.00024657,2]
[383126668,1756858244600,-400.0,0.00024657,2]
[383126669,1756858244610,-400.0,0.00024657,2]
[383126670,1756858244619,-400.0,0.00024657,2]
[383126671,1756858244631,-400.0,0.00024657,2]
[383126672,1756858244642,-400.0,0.00024657,2]
[383126673,1756858244652,-400.0,0.00024657,2]
[383126674,1756858244662,-400.0,0.00024657,2]
[383126675,1756858244673,-400.0,0.00024657,2]
[383126676,1756858244682,-400.0,0.00024657,2]
[383126677,1756858244693,-400.0,0.00024657,2]
[383126678,1756858244702,-402.74,0.00024657,2]
[383126679,1756858244712,-400.0,0.00024657,2]
[383126680,1756858244722,-400.0,0.00024657,2]
[383126681,1756858244731,-400.0,0.00024657,2]
[383126682,1756858244740,-518.49,0.00024657,2]
[383126683,1756858244750,-400.0,0.00024657,2]
[383126684,1756858244759,-400.0,0.00024657,2]
[383126685,1756858244768,-400.0,0.00024657,2]
[383126686,1756858244778,-436.05819677,0.00024657,2]
[383126687,1756858244787,-400.0,0.00024657,2]
[383126688,1756858244796,-400.0,0.00024657,2]
[383126689,1756858244807,-400.0,0.00024657,2]
[383126690,1756858244816,-400.0,0.00024657,2]
[383126691,1756858244826,-547.04,0.00024657,2]
[383126692,1756858244836,-615.04,0.00024657,2]
[383126693,1756858244846,-400.0,0.00024657,2]
[383126694,1756858244857,-561.38,0.00024657,2]
[383126695,1756858244867,-400.0,0.00024657,2]
[383126696,1756858244877,-400.0,0.00024657,2]
[383126697,1756858244894,-400.0,0.00024657,2]
[383126698,1756858244903,-400.0,0.00024657,2]
[383126699,1756858244914,-400.0,0.00024657,2]
[383126700,1756858244924,-400.0,0.00024657,2]
[383126701,1756858244934,-400.0,0.00024657,2]
[383126702,1756858244944,-400.0,0.00024657,2]
[383126703,1756858244954,-437.11,0.00024657,2]
[383126704,1756858244963,-400.0,0.00024657,2]
[383126705,1756858244973,-400.0,0.00024657,2]
[383126706,1756858244983,-400.0,0.00024657,2]
[383126707,1756858244992,-412.55,0.00024657,2]
[383126708,1756858245002,-400.0,0.00024657,2]
[383126709,1756858245011,-400.0,0.00024657,2]
[383126710,1756858245020,-400.0,0.00024657,2]
[383126711,1756858245029,-151.0,0.00024657,7]
[383126712,1756858245038,-400.0,0.00024657,2]
[383126713,1756858245047,-576.65,0.00024657,2]
[383126714,1756858245058,-402.94878843,0.00024657,2]
[383126715,1756858245067,-400.0,0.00024657,2]
[383126716,1756858245078,-400.0,0.00024657,2]
[383126717,1756858245088,-516.70806849,0.00024657,2]
[383126718,1756858245098,-400.0,0.00024657,2]
[383126719,1756858245107,-400.0,0.00024657,2]
[383126720,1756858245117,-400.0,0.00024657,2]
[383126721,1756858245128,-575.11,0.00024657,2]
[383126722,1756858245138,-400.0,0.00024657,2]
[383126723,1756858245153,-400.0,0.00024657,2]
[383126724,1756858245163,-400.0,0.00024657,2]
[383126725,1756858245173,-588.11,0.00024657,2]
[383126726,1756858245182,-400.0,0.00024657,2]
[383126727,1756858245194,-400.0,0.00024657,2]
[383126728,1756858245205,-549.58,0.00024657,2]
[383126729,1756858245216,-588.43,0.00024657,2]
[383126730,1756858245225,-400.0,0.00024657,2]
[383126731,1756858245237,-405.91699389,0.00024657,2]
[383126732,1756858245248,-400.0,0.00024657,2]
[383126733,1756858245258,-872.88,0.00024657,2]
[383126734,1756858245268,-400.0,0.00024657,2]
[383126735,1756858245278,-151.0,0.00024657,7]
[383126736,1756858245288,-151.0,0.00024657,7]
[383126737,1756858245298,-616.91,0.00024657,2]
[383126738,1756858245311,-403.96246943,0.00024657,2]
[383126739,1756858245320,-400.0,0.00024657,2]
[383126740,1756858245331,-400.0,0.00024657,2]
[383126741,1756858245340,-587.3,0.00024657,2]
[383126742,1756858245351,-400.0,0.00024657,2]
[383126743,1756858245362,-400.0,0.00024657,2]
[383126744,1756858245373,-440.31,0.00024657,2]
[383126745,1756858245384,-400.0,0.00024657,2]
[383126746,1756858245395,-400.0,0.00024657,2]
[383126747,1756858245407,-400.0,0.00024657,2]
[383126748,1756858245418,-400.0,0.00024657,2]
[383126749,1756858245429,-400.0,0.00024657,2]
[383126750,1756858245438,-400.0,0.00024657,2]
[383126751,1756858245447,-400.0,0.00024657,2]
[383126752,1756858245458,-400.0,0.00024657,2]
[383126753,1756858245705,-242.43264606,0.00024657,2]
[383126754,1756858245744,-400.0,0.00024657,2]
[383126755,1756858245754,-400.0,0.00024657,2]
[383126756,1756858245765,-400.0,0.00024657,2]
[383126757,1756858245778,-400.0,0.00024657,2]
[383126758,1756858245789,-400.0,0.00024657,2]
[383126759,1756858245799,-400.0,0.00024657,2]
[383126760,1756858245808,-400.0,0.00024657,2]
[383126761,1756858245818,-400.0,0.00024657,2]
[383126762,1756858245828,-501.6,0.00024657,2]
[383126763,1756858245838,-400.0,0.00024657,2]
[383126764,1756858245848,-400.0,0.00024657,2]
[383126765,1756858245857,-400.0,0.00024657,2]
[383126766,1756858245867,-400.0,0.00024657,2]
[383126767,1756858245877,-732.97,0.00024657,2]